[Event "Baku Open 2024"]
[Site "Baku"]
[Date "2024.07.06"]
[Round "8.1"]
[White "Narayanan S L"]
[Black "Puranik, Abhimanyu"]
[Result "1/2-1/2"]
[ECO "E60"]
[WhiteElo "2668"]
[BlackElo "2632"]
[Annotator "TA"]
[PlyCount "90"]
[EventDate "2024.06.29"]
[EventType "swiss"]
[EventCountry "AZE"]
[SourceTitle "playchess.com"]
[Source "ChessBase"]
[SourceQuality "1"]
[TimeControl "5400+30"]

{[%evp 26,90,117,105,94,101,101,110,113,104,145,133,252,258,272,267,282,250,254,218,214,165,158,173,180,177,158,158,220,223,266,141,178,185,275,284,485,487,485,335,348,362,330,342,331,343,305,-303,68,0,0,0,0,0,0,-70,-68,-75,-63,-72,-84,-87,0,0,0,-125,0]} 1. d4 {[%emt 0:00:03]} Nf6 {[%emt 0:00:21]} 2. c4 {[%emt 0:00:05]} g6 {[%emt 0:00:27]} 3. h4 {[%emt 0:00:06]} Bg7 {[%emt 0:01:39]} 4. Nc3 {[%emt 0:00:10]} d6 {[%emt 0:00:08]} 5. e4 {[%emt 0:00:37]} Nc6 {[%emt 0:00:58]} 6. Nf3 {[%emt 0:00:29] E60: King's Indian: Unusual lines and Fianchetto Variation without Nc3.} Bg4 {[%emt 0:02:48]} 7. d5 {[%emt 0:00:43]} Ne5 {[%emt 0:00:33]} 8. Be2 {[%emt 0:00:24]} Bxf3 {[%emt 0:02:24]} 9. gxf3 {[%emt 0:00:07]} h5 {[%emt 0:01:25]} 10. f4 {[%emt 0:05:28]} Ned7 {[%emt 0:00:25]} 11. Rg1 $5 $146 {[%emt 0:00:11][%mdl 8] New and interesting.} ({Predecessor:} 11. Be3 c6 12. Qb3 Qc7 13. f3 a6 14. a4 Rc8 15. a5 cxd5 16. exd5 O-O 17. Rg1 {0-1 Dzhumagaliev,Y (2411)-Burmakin,E (2179) RUS-ch Blitz 2023 (1)}) 11... c6 {[%emt 0:07:00]} 12. Be3 {[%emt 0:13:26]} cxd5 {[%emt 0:27:12]} 13. cxd5 {[%emt 0:00:56]} Ng4 {[%emt 0:01:59]} 14. Bd4 $1 {[%emt 0:00:45]} Bf6 {[%emt 0:04:14]} 15. f3 {[%emt 0:05:50]} Nh6 {[%emt 0:00:36]} 16. Bxf6 {[%emt 0:00:15]} exf6 {[%emt 0:02:03]} 17. Qd2 $1 {[%emt 0:03:15]} f5 {[%emt 0:02:23]} 18. O-O-O {[%emt 0:02:13]} Qxh4 {[%emt 0:04:03]} (18... fxe4 $16 {is a better defense.} 19. fxe4 (19. Nxe4 Qe7 $16) 19... Rc8 (19... Qxh4 $2 20. Nb5 $16)) 19. Nb5 $1 $18 {[%emt 0:02:42]} Rc8+ {[%emt 0:03:04]} 20. Kb1 {[%emt 0:00:24]} Qf6 {[%emt 0:01:17]} 21. Nxa7 {[%emt 0:06:04]} Rd8 {[%emt 0:03:12]} 22. Nb5 {[%emt 0:00:49]} Kf8 {[%emt 0:07:37]} 23. Bd3 {[%emt 0:19:26]} Kg7 {[%emt 0:06:13]} 24. Bc2 $1 {[%emt 0:03:15]} fxe4 {[%emt 0:04:42]} 25. fxe4 {[%emt 0:00:14]} Ng4 {[%emt 0:00:04]} 26. Rde1 {[%emt 0:01:04]} Rhe8 {[%emt 0:00:52]} (26... Qe7 $16 27. Bd1 Kg8) 27. Rgf1 $18 {[%emt 0:01:15]} Qe7 {[%emt 0:02:11] [#]} (27... Nc5 $2 28. e5 dxe5 29. fxe5 $18) 28. e5 {[%emt 0:11:48]} (28. Nc7 $1 $18 {[%mdl 512]}) 28... dxe5 $16 {[%emt 0:00:08]} 29. d6 {[%emt 0:00:53]} Qh4 {[%emt 0:00:19]} (29... Ndf6 $142) 30. Nc7 $18 {[%emt 0:00:31]} Rf8 $2 {[%emt 0:03:16]} (30... Nh2) 31. f5 $18 {[%emt 0:00:31]} Nc5 {[%emt 0:05:17]} 32. Qd5 {[%emt 0:07:12]} b6 {[%emt 0:00:43]} 33. fxg6 {[%emt 0:04:41]} fxg6 {[%emt 0:00:11]} 34. Ne6+ {[%emt 0:03:48]} Nxe6 {[%emt 0:00:04]} 35. Qxe6 {[%emt 0:00:02]} Qg5 {[%emt 0:02:02]} 36. Ba4 $4 {[%emt 0:02:52][%mdl 8192]} (36. Qe7+ Qxe7 37. dxe7 Rxf1 38. exd8=Q (38. exd8=R $2 Rxe1+ 39. Rd1 Rxd1+ 40. Bxd1 Nf2 $19) 38... Rxe1+ 39. Bd1 Ne3 40. Qe7+ Kh6 41. Qf8+ Kg5 42. Qe7+ (42. Qd8+ Kf5 $11) 42... Kf5 43. Qf8+ Kg5 44. Qe7+ (44. Qd8+ Kf5 $11) 44... Kf5 45. Qf8+ Kg5 $11) (36. Rxf8 $18 {was the only winning move. White wants to mate with Qg8+.} Rxf8 37. d7) 36... Kh6 $2 {[%emt 0:03:26]} ({Black should play} 36... Qd2 $19 {Hoping for ...Rxf1.} 37. Bc2 Qxd6 38. Rxf8 Qxe6 39. Rxd8 h4) 37. d7 {[%emt 0:00:11]} ({White should try} 37. Rxf8 $1 $14 Rxf8 38. d7 Qf5+ 39. Qxf5 gxf5 40. Rd1) 37... Rxf1 {[%emt 0:01:28]} 38. Rxf1 {[%emt 0:00:04]} Ne3 {[%emt 0:00:13]} 39. Rc1 {[%emt 0:00:05]} Qf4 $1 {[%emt 0:00:21]} 40. Bc6 {[%emt 0:01:46]} (40. Qxb6 $2 {perishes.} Rxd7 41. Rg1 (41. Bxd7 {leads to mate.} Qe4+ 42. Ka1 Nc2+ 43. Kb1 Na3+ 44. Ka1 Qb1+ 45. Rxb1 Nc2#) 41... Qf5+ (41... Qxa4 42. Qxg6#) 42. Ka1 Nc2+ 43. Kb1 (43. Bxc2 $2 Qxc2 44. Qe3+ Kh7 $19) 43... Nd4+ 44. Ka1 Rf7 $19) (40. Qc6 $11) 40... Qf5+ $15 {[%emt 0:01:09]} 41. Qxf5 {[%emt 0:00:04]} Nxf5 {[%emt 0:00:02]} 42. Ba4 {[%emt 0:00:45]} Nd6 {[%emt 0:01:25]} 43. Bc6 {[%emt 0:00:01]} Nf5 {[%emt 0:00:24]} 44. Ba4 {[%emt 0:00:10]} Nd6 {[%emt 0:00:23]} (44... Nd4 $5 45. Rc8 $8 Ne6 $16) 45. Bc6 $1 {[%emt 0:00:04] [#]} Nf5 {[%emt 0:01:30]} (45... Kg7 $1 $17 46. b4 h4) 1/2-1/2

[Event "Baku Open 2024"]
[Site "Baku"]
[Date "2024.07.06"]
[Round "8.2"]
[White "Movahed, Sina"]
[Black "Mamedov, Rauf"]
[Result "1-0"]
[ECO "C78"]
[WhiteElo "2482"]
[BlackElo "2651"]
[Annotator "TA"]
[PlyCount "95"]
[EventDate "2024.06.29"]
[EventType "swiss"]
[EventCountry "AZE"]
[SourceTitle "playchess.com"]
[Source "ChessBase"]
[SourceQuality "1"]
[TimeControl "5400+30"]

{[%evp 14,95,31,6,35,22,20,0,21,16,7,15,0,0,0,-90,-71,-104,-111,-121,-90,-83,-91,-90,-17,-86,0,-20,-22,-30,0,0,0,0,146,142,137,136,153,141,143,147,170,158,162,127,123,118,129,119,116,85,85,92,123,124,183,183,181,192,187,181,182,187,187,175,174,174,273,266,414,428,428,428,428,428,428,428,421,421,421,421,406,397]} 1. e4 {[%emt 0:02:55]} e5 {[%emt 0:00:07]} 2. Nf3 {[%emt 0:00:12]} Nc6 {[%emt 0:00:04]} 3. Bb5 {[%emt 0:00:04][%cal Bf1b5,Bb5a4,Ba4b3][%mdl 32]} a6 {[%emt 0:00:03]} 4. Ba4 {[%emt 0:00:05]} Nf6 {[%emt 0:00:04]} 5. O-O {[%emt 0:00:08]} Bc5 {[%emt 0:00:02]} 6. c3 {[%emt 0:00:11]} b5 {[%emt 0:00:04]} 7. Bb3 {[%emt 0:02:05]} d6 {[%emt 0:01:52]} 8. a4 {[%emt 0:00:10]} Bb7 {[%emt 0:00:04]} 9. d4 {[%emt 0:00:07]} Bb6 {[%emt 0:00:03]} 10. Be3 {[%emt 0:03:24]} O-O {[%emt 0:01:49] The position is equal.} 11. Nbd2 {[%emt 0:00:31]} exd4 {[%emt 0:00:18]} 12. cxd4 {[%emt 0:00:09]} Nb4 {[%emt 0:00:03]} 13. a5 {[%emt 0:08:30]} Ba7 {[%emt 0:00:31]} 14. Qb1 {[%emt 0:01:42]} (14. Bg5 $11 {remains equal.} h6 15. Bh4) 14... h6 {[%emt 0:13:39]} 15. Re1 {[%emt 0:11:13]} c5 {[%emt 0:11:46]} 16. h3 {[%emt 0:04:31]} c4 {[%emt 0:03:54]} 17. Bc2 {[%emt 0:00:07]} Re8 {[%emt 0:06:20]} 18. d5 {[%emt 0:00:29]} Qc7 {[%emt 0:04:12]} (18... Nh5 $17 19. Qd1 Qf6) 19. Ra3 {[%emt 0:04:25]} (19. Bxa7 $11 Rxa7 20. Qc1) 19... Bc8 {[%emt 0:06:42]} ({Black should play} 19... Bc5 $1 $17 {And now ...Nxc2 would win.} 20. Ra1 (20. Bxc5 dxc5 21. Bd1 Nh5 $17) 20... Re7) 20. Bxa7 {[%emt 0:13:43]} Rxa7 {[%emt 0:00:45]} 21. Qc1 {[%emt 0:02:15]} Nh5 {[%emt 0:09:25]} 22. Bb1 {[%emt 0:05:08]} Bd7 $1 {[%emt 0:15:12]} 23. Nf1 {[%emt 0:01:54]} Nf6 {[%emt 0:03:07]} (23... f5 $1 $11 {keeps the balance.}) 24. Ng3 {[%emt 0:02:23]} Nd3 {[%emt 0:03:08]} 25. Bxd3 {[%emt 0:00:25]} cxd3 {[%emt 0:00:09]} 26. Qa1 {[%emt 0:05:27]} ({Don't take} 26. Rxd3 $6 Qxc1 27. Rxc1 Nxe4 $14) 26... Qc4 {[%emt 0:02:53][%cal Rf6e4]} 27. Rc1 {[%emt 0:03:08]} Qb4 {[%emt 0:00:29]} 28. Rxd3 {[%emt 0:00:10]} Qa4 {[%emt 0:17:45]} 29. Rd4 Qxa1 30. Rxa1 Rc7 31. Re1 Rc2 32. b3 Rc3 {[%emt 0:00:00]} 33. Nd2 Rec8 {[%emt 0:00:00]} 34. Kh2 g5 {[%emt 0:00:00] [#]} (34... Rc1 $16 {is a better defense.} 35. Rxc1 Rxc1) 35. e5 $1 $18 dxe5 {[%emt 0:00:00]} 36. Rxe5 {Nde4 is the strong threat.} Kf8 {[%emt 0:00:00]} 37. Nge4 Nxe4 {[%emt 0:00:00]} 38. Nxe4 ({Worse is} 38. Rdxe4 Rd3 39. Nf3 f6 $11) ({Not} 38. Rexe4 f5 39. Re5 Re8 $14) 38... Rxb3 {[%emt 0:00:00]} 39. d6 Rd8 {[%emt 0:00:00] [#]} 40. Nc5 $1 {[%csl LRa6,LRb3]} Rc3 {[%emt 0:00:00]} (40... Rb2 $142) 41. Nxa6 Rc4 {[%emt 0:00:00]} (41... Ra3 {was worth a try.} 42. Nc5 Rxa5) 42. Rxc4 bxc4 {[%emt 0:00:00][%mdl 4096] Endgame. KRB-KRN} 43. Nc7 {a6 would now be deadly.} Bc8 {[%emt 0:00:00]} 44. a6 Bxa6 {[%emt 0:00:00]} 45. Nxa6 Rxd6 {[%emt 0:00:00]} 46. Nb8 Rd2 {[%emt 0:00:00]} 47. f3 c3 {[%emt 0:00:00]} 48. Rc5 {Weighted Error Value: White=0.12 (very precise) /Black=0.25 (precise) .  Mistake:       	White=2     	Black=6      Inaccurate:     	White=1     	Black=2      OK:         	White=19    	Black=19     Best:        	White=3     	---        Strong:       	White=1     	Black=1} 1-0

[Event "Baku Open 2024"]
[Site "Baku"]
[Date "2024.07.06"]
[Round "8.3"]
[White "Aditya Mittal"]
[Black "Zverev, Lev"]
[Result "1-0"]
[ECO "C78"]
[WhiteElo "2595"]
[BlackElo "2416"]
[Annotator "RC"]
[PlyCount "105"]
[EventDate "2024.06.29"]
[EventType "swiss"]
[EventCountry "AZE"]
[SourceTitle "playchess.com"]
[Source "ChessBase"]
[SourceQuality "1"]
[TimeControl "5400+30"]

1. e4 {[%emt 0:00:02]} e5 {[%emt 0:07:56]} 2. Nf3 {[%emt 0:00:01]} Nc6 {[%emt 0:00:08]} 3. Bb5 {[%emt 0:00:02]} a6 {[%emt 0:00:07]} 4. Ba4 {[%emt 0:00:01]} Nf6 {[%emt 0:00:07]} 5. O-O {[%emt 0:00:02]} b5 {[%emt 0:00:06]} 6. Bb3 {[%emt 0:00:01]} Bc5 {[%emt 0:00:06]} 7. a4 {[%emt 0:00:02]} Rb8 {[%emt 0:00:07]} 8. c3 {[%emt 0:00:01]} d6 {[%emt 0:00:07]} 9. d4 {[%emt 0:00:01]} Bb6 {[%emt 0:00:06]} 10. a5 {[%emt 0:00:02]} Ba7 {[%emt 0:00:06]} 11. h3 {[%emt 0:00:02]} Bb7 {[%emt 0:04:56]} 12. Re1 {[%emt 0:00:16]} O-O {[%emt 0:01:24]} 13. Be3 {[%emt 0:00:02]} Ra8 {[%emt 0:02:24]} 14. Nbd2 {[%emt 0:02:26]} h6 {[%emt 0:06:09]} 15. Bc2 {[%emt 0:03:47]} Re8 {[%emt 0:02:00]} 16. Ra3 {[%emt 0:00:12]} exd4 {[%emt 0:06:00]} 17. cxd4 {[%emt 0:00:13]} Nb4 {[%emt 0:00:22]} 18. Bb1 {[%emt 0:00:01]} Nxe4 {[%emt 0:11:33]} 19. Nxe4 {[%emt 0:00:25]} Bxe4 {[%emt 0:00:09]} 20. Bg5 {[%emt 0:00:01]} hxg5 {[%emt 0:01:14]} 21. Rxe4 {[%emt 0:00:03]} Rxe4 {[%emt 0:17:27]} 22. Bxe4 {[%emt 0:00:11]} c6 {[%emt 0:02:20]} 23. Qd2 {[%emt 0:08:23]} Nd5 {[%emt 0:01:47]} 24. Nxg5 {[%emt 0:02:30]} Qe7 {[%emt 0:08:17]} 25. Rf3 {[%emt 0:15:30]} Rf8 {[%emt 0:09:04]} 26. Bh7+ {[%emt 0:27:08]} Kh8 {[%emt 0:00:04]} 27. Bc2 {[%emt 0:00:08]} g6 {[%emt 0:02:59]} 28. h4 {[%emt 0:05:53]} f5 {[%emt 0:01:47]} 29. g4 {[%emt 0:10:11]} fxg4 {[%emt 0:07:05]} 30. Rxf8+ {[%emt 0:02:09]} Qxf8 {[%emt 0:00:04]} 31. Ne6 {[%emt 0:01:36]} Qe7 {[%emt 0:01:31]} 32. Qh6+ {[%emt 0:01:08]} Qh7 {[%emt 0:00:05]} 33. Qg5 {[%emt 0:00:31]} g3 {[%emt 0:04:24]} 34. Bxg6 {[%emt 0:10:52]} gxf2+ {[%emt 0:00:11]} 35. Kxf2 {[%emt 0:01:26]} Qe7 {[%emt 0:00:05]} 36. Qh6+ {[%emt 0:01:22]} Kg8 {[%emt 0:00:05]} 37. Bh7+ {[%emt 0:00:06]} Kh8 {[%emt 0:00:04]} 38. Bf5+ {[%emt 0:00:22]} Kg8 {[%emt 0:00:05]} 39. Bh7+ {[%emt 0:02:44]} Kh8 {[%emt 0:00:06]} 40. Be4+ {[%emt 0:00:02]} Kg8 {[%emt 0:00:06]} 41. Qg6+ {[%emt 0:00:01]} Kh8 {[%emt 0:00:08]} 42. Qh6+ {[%emt 0:02:32]} Kg8 {[%emt 0:00:05]} 43. Bxd5 {[%emt 0:00:07]} cxd5 {[%emt 0:00:11]} 44. Qg6+ {[%emt 0:00:01]} Kh8 {[%emt 0:00:07]} 45. Qh6+ {[%emt 0:02:09]} Kg8 {[%emt 0:00:07]} 46. Qg6+ {[%emt 0:00:02]} Kh8 {[%emt 0:00:08]} 47. Ke3 {[%emt 0:00:32]} Bxd4+ {[%emt 0:02:22]} 48. Kxd4 {[%emt 0:00:05]} Qxh4+ {[%emt 0:00:07]} 49. Kxd5 {[%emt 0:00:08]} Qc4+ {[%emt 0:00:22]} 50. Kxd6 {[%emt 0:00:02]} Qb4+ {[%emt 0:00:10]} 51. Kc6 {[%emt 0:01:30]} Qxb2 {[%emt 0:00:08]} 52. Ng5 {[%emt 0:01:54]} Qc2+ {[%emt 0:02:07]} 53. Qxc2 {[%emt 0:00:03]} 1-0

[Event "Baku Open 2024"]
[Site "Baku"]
[Date "2024.07.06"]
[Round "8.4"]
[White "Ilamparthi A R"]
[Black "Abasov, Nijat"]
[Result "1/2-1/2"]
[ECO "C58"]
[WhiteElo "2446"]
[BlackElo "2621"]
[Annotator "TA"]
[PlyCount "48"]
[EventDate "2024.06.29"]
[EventType "swiss"]
[EventCountry "AZE"]
[SourceTitle "playchess.com"]
[Source "ChessBase"]
[SourceQuality "1"]
[TimeControl "5400+30"]

{[%evp 13,48,37,25,11,13,-78,-86,-75,0,0,-2,-6,41,48,77,98,97,84,84,30,60,55,79,38,115,68,55,37,39,43,62,0,14,15,43,47,33]} 1. e4 {[%emt 0:03:03][%cal Be2e4,Be4d5][%mdl 32]} e5 {[%emt 0:01:42]} 2. Nf3 {[%emt 0:00:08]} Nc6 {[%emt 0:00:06]} 3. Bc4 {[%emt 0:00:06]} Nf6 {[%emt 0:01:00]} 4. Ng5 {[%emt 0:00:08]} d5 {[%emt 0:00:05]} 5. exd5 {[%emt 0:00:06]} Na5 {[%emt 0:00:34]} 6. Bb5+ {[%emt 0:00:08]} Bd7 {[%emt 0:00:45]} 7. Qe2 {[%emt 0:01:02]} Be7 {[%emt 0:00:39]} 8. Bxd7+ {[%emt 0:09:16]} Qxd7 {[%emt 0:01:48]} 9. Qxe5 {[%emt 0:00:23]} (9. c4 $1 $11 {keeps the balance.}) 9... Nxd5 $17 {[%emt 0:07:21] [#] And now ...0-0-0 would win.} 10. Nf3 {[%emt 0:14:41] Black is better.} f6 {[%emt 0:05:48] Repels d4} (10... Nc6 $17 11. Qe4 f5) 11. Qe4 $11 {[%emt 0:05:10]} f5 {[%emt 0:02:38]} 12. Qd3 {[%emt 0:07:42]} Qe6+ {[%emt 0:12:16]} (12... O-O-O $11) 13. Qe2 $14 {[%emt 0:00:55]} Qg6 {[%emt 0:00:31][%cal Od5f4] [#]} 14. d4 $1 {[%emt 0:10:19]} ({Inferior is} 14. Qb5+ c6 15. Qe2 (15. Qxa5 $2 {perishes.} Qxg2 16. Rg1 Qxf3 $19) 15... O-O $17 (15... Qxg2 16. Rg1 $15) (15... Nf4 16. Qd1 $15)) 14... O-O-O {[%emt 0:06:19]} 15. O-O {[%emt 0:00:17]} Rhe8 {[%emt 0:02:17]} 16. Ne5 {[%emt 0:03:04]} (16. Nc3 $16) 16... Qb6 {[%emt 0:03:52] Prevents Qb5} 17. c3 {[%emt 0:09:32]} Bf6 {[%emt 0:05:13]} 18. Na3 {[%emt 0:01:56]} c5 {[%emt 0:04:10]} (18... Bxe5 $14 19. dxe5 Nc6) 19. Qf3 {[%emt 0:04:43]} ({White should play} 19. Qc2 $16) 19... g6 {[%emt 0:00:08]} 20. dxc5 {[%emt 0:09:58]} Qxc5 {[%emt 0:00:50]} 21. Nd3 {[%emt 0:00:17]} Qc6 {[%emt 0:01:45][%cal Od5c3]} 22. Nf4 {[%emt 0:00:44]} ({Better is} 22. Rd1 $14) 22... Nxf4 {[%emt 0:03:24]} 23. Qxf4 {[%emt 0:01:38]} ({Don't play} 23. Qxc6+ Nxc6 24. Bxf4 g5 $15) 23... Re4 {[%emt 0:13:06]} 24. Qf3 {[%emt 0:00:32]} Be7 {[%emt 0:00:21] Weighted Error Value: White=0.23 (precise) /Black=0.19 (very precise) .  Mistake:       	White=4     	Black=3      Inaccurate:     	White=1     	Black=3      OK:         	White=5     	Black=6      Best:        	White=1     	Black=1      Strong:       	White=1     	---} 1/2-1/2

[Event "Baku Open 2024"]
[Site "Baku"]
[Date "2024.07.06"]
[Round "8.5"]
[White "Samadov, Read"]
[Black "Manafov, Vugar"]
[Result "1/2-1/2"]
[ECO "E11"]
[WhiteElo "2503"]
[BlackElo "2430"]
[Annotator "TA"]
[PlyCount "65"]
[EventDate "2024.06.29"]
[EventType "swiss"]
[EventCountry "AZE"]
[SourceTitle "playchess.com"]
[Source "ChessBase"]
[SourceQuality "1"]
[TimeControl "5400+30"]

{[%evp 11,65,22,22,25,35,21,19,20,27,15,28,42,23,30,30,38,37,16,54,30,70,49,59,33,81,46,91,75,53,32,71,69,78,93,92,90,178,16,22,27,20,14,37,0,0,0,0,0,0,0,0,0,0,-7,-7,-2]} 1. d4 {[%emt 0:00:04]} Nf6 {[%emt 0:00:14]} 2. c4 {[%emt 0:00:06]} e6 {[%emt 0:00:10]} 3. Nf3 {[%emt 0:00:05]} Bb4+ {[%emt 0:00:18]} 4. Nbd2 {[%emt 0:00:16]} b6 {[%emt 0:00:35]} 5. a3 {[%emt 0:00:27]} Bxd2+ {[%emt 0:00:16]} 6. Bxd2 {[%emt 0:00:14]} Bb7 {[%emt 0:00:25]} 7. e3 {[%emt 0:00:30]} d5 {[%emt 0:01:45]} 8. Be2 {[%emt 0:06:46]} dxc4 {[%emt 0:04:34]} 9. Bxc4 {[%emt 0:00:54]} Nbd7 {[%emt 0:00:35]} 10. O-O {[%emt 0:01:32]} O-O {[%emt 0:02:00]} 11. Qe2 {[%emt 0:08:18]} Ne4 {[%emt 0:04:31]} 12. Rfd1 {[%emt 0:08:53]} c5 {[%emt 0:08:12]} 13. Be1 {[%emt 0:05:07]} Qe7 {[%emt 0:06:29]} 14. Rac1 {[%emt 0:02:57]} Rfd8 {[%emt 0:02:38]} 15. dxc5 {[%emt 0:06:11]} bxc5 {[%emt 0:09:42]} 16. b4 {[%emt 0:07:20]} cxb4 {[%emt 0:11:22]} 17. Bxb4 {[%emt 0:01:45]} Qf6 {[%emt 0:00:48]} (17... Ndc5 $1 $14 {is more appropriate.}) 18. Bb5 {[%emt 0:06:31] A strong pair of Bishops.} Bd5 {[%emt 0:11:06]} 19. Ba5 {[%emt 0:05:32]} Nb6 {[%emt 0:00:20]} 20. Nd4 {[%emt 0:03:02]} Qg5 {[%emt 0:05:15][%cal Oe4c3] ...Nc3! is the strong threat.} 21. f4 {[%emt 0:06:16]} Qf6 {[%emt 0:06:52]} 22. Nc6 {[%emt 0:02:14]} Rdc8 {[%emt 0:00:07] [#]} 23. Nxa7 $1 {[%emt 0:07:52] White is more active.} Nc3 {[%emt 0:00:16]} (23... Rcb8 $16 {was called for.}) 24. Qd3 $2 {[%emt 0:04:01]} (24. Bxb6 $2 {is the wrong capture.} Nxe2+ 25. Bxe2 Rxc1 26. Rxc1 Qb2 $19) (24. Rxc3 $18 Rxc3 25. Bxb6 Rxa3 26. Bd4) 24... Nxd1 $11 {[%emt 0:04:15]} 25. Nxc8 {[%emt 0:00:15]} Nxc8 {[%emt 0:01:40]} 26. Qxd1 {[%emt 0:00:53]} Nd6 {[%emt 0:00:37]} (26... Qb2 $5 27. Bf1 (27. Qc2 Qxc2 28. Rxc2 Nd6 $17) 27... Qxa3 $11) 27. Bc3 {[%emt 0:00:44]} (27. Qc2 $5) 27... Qg6 {[%emt 0:00:08] The position is equal.} 28. Bf1 {[%emt 0:00:29]} Rxa3 {[%emt 0:00:14]} 29. Qc2 {[%emt 0:02:05] [#] Strongly threatening Bb4.} Ra2 {[%emt 0:03:35]} 30. Bb2 {[%emt 0:01:28]} Qxc2 {[%emt 0:01:08]} 31. Rxc2 {[%emt 0:00:01]} h5 {[%emt 0:01:19]} 32. Bd3 {[%emt 0:01:07]} Be4 {[%emt 0:01:32]} 33. Be5 {[%emt 0:00:23] Weighted Error Value: White=0.20 (precise) /Black=0.16 (very precise) .  Missed win:     	White=1     	---        Mistake:       	---       	Black=2      Inaccurate:     	White=3     	Black=4      OK:         	White=9     	Black=7      Best:        	---       	Black=3      Strong:       	White=1     	---} 1/2-1/2